Cogmind - Beta 17.1 @@@ ROGUE MODE // 2026.08.27 @ 21:44:38 Player: Jimothy Jimone Result: Destroyed by O7-5YO(R) with Subdweller Machine Gun Performance ------------- Evolutions (0) 0 Regions Visited (2) 400 Robots Destroyed (13) 65 Value Destroyed (279) 279 Prototype IDs (0) 0 Alien Tech Used (0) 0 Bonus (0) 0 TOTAL SCORE: 744 Bonus ------- None Cogmind --------- Core Integrity 0/250 Matter 300/300 Energy 125/125 System Corruption 3% Temperature Cool (0) Movement Walking (120) Location -10/Subcaves Parts ------- > --- POWER (1) -------- Light Ion Engine > --- PROPULSION (2) --- Aluminum Leg Aluminum Leg > --- UTILITY (2) ------ Small Storage Unit Seismic Detector > --- WEAPON (2) ------- Battle Rifle Battle Rifle > --- INVENTORY (8) ---- Flight Unit Improved Terrain Scanner Assault Rifle Battle Rifle Peak State ------------ > --- POWER ------------ Light Ion Engine > --- PROPULSION ------- Aluminum Leg Aluminum Leg > --- UTILITY ---------- Small Storage Unit Seismic Detector > --- WEAPON ----------- Battle Rifle Battle Rifle > --- INVENTORY -------- Light Ion Engine Flight Unit Improved Terrain Scanner Beam Cannon Assault Rifle Assault Rifle Battle Rifle [Rating: 10] Favorites ----------- Power Light Ion Engine Engine Light Ion Engine Propulsion Aluminum Leg Leg Aluminum Leg Wheel Wheel Utility Small Storage Unit Device Structural Scanner Storage Small Storage Unit Weapon Assault Rifle Energy Cannon Beam Cannon Ballistic Gun Assault Rifle Build | -11 -10 -10 ------- Run | Yrd Mat Sub Slots Evolved . | . . . Power . | . . . Propulsion . | . . . Utility . | . . . Weapon . | . . . Parts Attached 15 | 6 5 4 Power 3 | 1 1 1 Engine 3 | 1 1 1 Core . | . . . Reactor . | . . . Propulsion 4 | 2 2 . Treads . | . . . Leg 2 | . 2 . Wheel 2 | 2 . . Hover . | . . . Flight . | . . . Utility 3 | 1 1 1 Device 2 | . 1 1 Storage 1 | 1 . . Processor . | . . . Hackware . | . . . Protection . | . . . Artifact . | . . . Weapon 5 | 2 1 2 Energy Gun . | . . . Energy Cannon 1 | . 1 . Ballistic Gun 4 | 2 . 2 Ballistic Cannon . | . . . Launcher . | . . . Special Weapon . | . . . Impact Weapon . | . . . Slashing Weapon . | . . . Piercing Weapon . | . . . Special Melee Weapon . | . . . Unidentified Prototypes . | . . . Parts Lost 4 | . 4 . Power 1 | . 1 . Propulsion 2 | . 2 . Utility 1 | . 1 . Weapon . | . . . Highest Loss Streak 2 | . 2 . To Critical Strikes . | . . . Average Backups 4 | . 4 4 Power . | . . . Propulsion 1 | . 1 1 Utility . | . . 1 Weapon 1 | . . 1 Tool/Special . | . . . Unused Backups 3 | . . 3 Power . | . . . Propulsion 1 | . . 1 Utility 1 | . . 1 Weapon 1 | . . 1 Tool/Special . | . . . Average Slot Usage (%) 94 | . 92 99 Engine 13 | . 13 13 Leg 13 | . 7 28 Wheel 11 | . 15 . Device 13 | . 13 14 Storage 14 | . 14 14 Energy Cannon 1 | . 1 . Ballistic Gun 25 | . 25 28 Peak Build Rating 10 | 6 7 10 Average Rating 6 | 4 6 8 On Entrance 4 | . 6 6 Avg Prop Armor Cover (%) . | . . . Naked Turns . | . . . Heaviest Build 16 | 14 16 13 Greatest Support 20 | 20 20 20 Greatest Overweight (x) 4 | 2 4 . Average Overweight (x) . | . . . Largest Inventory Capacity 8 | 8 8 8 Average Capacity 7 | 7 8 8 Most Carried 7 | 2 7 7 Average Carried 4 | 1 4 4 Final Capacity 8 | 8 8 8 Final Carried 5 | 2 5 4 Class Distribution -------------------- 100% | Mutant Dominant Class ---------------- Mutant | -10/Materials Mutant | -10/Subcaves Resources | -11 -10 -10 ----------- Run | Yrd Mat Sub Matter Collected 514 | 253 181 80 Remotely . | . . . Salvage Created 420 | . 334 86 Parts 19 | . 16 3 Haulers Intercepted . | . . . Recyclers Shooed . | . . . Parts Field Recycled . | . . . Retrieved Matter . | . . . Parts Self-Destructed . | . . . Prevented . | . . . Parts Restored . | . . . Kills | -11 -10 -10 ------- Run | Yrd Mat Sub Combat Hostiles Destroyed 11 | . 9 2 Guns 7 | . 5 2 Cannons 4 | . 4 . Classes Destroyed 5 | . 4 1 Tunneler 1 | . 1 . Recycler 1 | . 1 . Swarmer 5 | . 5 . Grunt 4 | . 4 . Subdweller 2 | . . 2 Best Kill Streak 5 | . 5 2 Combat Bots Only 5 | . 5 2 Max Kills in Single Turn 1 | . 1 1 Gunslinging . | . . . Exploded . | . . . Melee . | . . . Uniques/NPCs Destroyed . | . . . Combat | -11 -10 -10 -------- Run | Yrd Mat Sub Hostile Shots Fired 113 | . 98 15 Missed 33 | . 28 5 Hits 80 | . 70 10 Projectile 80 | . 70 10 Critical Strikes 2 | . 2 . Damage Taken 835 | . 633 202 Core 262 | . 165 97 Absorbed by Shields . | . . . Core Remaining (%) 100 | 100 . . Volleys Fired 43 | . 38 5 Largest 2 | . 2 2 Hottest 80 | . 80 40 Shots Fired 65 | . 55 10 Gun 43 | . 33 10 Cannon 22 | . 22 . Launcher . | . . . Special . | . . . Kinetic 43 | . 33 10 Thermal 22 | . 22 . Explosive . | . . . Electromagnetic . | . . . Robot Hit Streak 10 | . 9 10 Robot Miss Streak 4 | . 4 . Penetration Max . | . . . Secondary Targets 2 | . 1 1 Max Gunslinging Chain 1 | . 1 1 Shots Hit Robots 32 | . 23 9 Core Hits 20 | . 15 5 Critical Kills . | . . . Critical Parts Destroyed . | . . . Critical Strikes . | . . . Melee Attacks . | . . . Impact . | . . . Slashing . | . . . Piercing . | . . . Sneak Attacks . | . . . Combat Hostiles . | . . . Follow-up Attacks . | . . . Damage Inflicted 516 | . 407 109 Guns 361 | . 252 109 Cannons 143 | . 143 . Explosions . | . . . Melee . | . . . Ramming 12 | . 12 . Kinetic 361 | . 252 109 Thermal 143 | . 143 . Explosive . | . . . Electromagnetic . | . . . Impact . | . . . Slashing . | . . . Piercing . | . . . Highest Corruption 3 | . 3 3 Average Corruption 3 | . 3 3 Corruption Purged . | . . . Corruption Blocked . | . . . Effects 3 | . . 3 Matter Fused 1 | . . 1 Heat Flow Errors 1 | . . 1 Energy Discharges 1 | . . 1 Overload Shots . | . . . Overflow Damage . | . . . Projectiles . | . . . Explosions . | . . . Melee . | . . . Knockbacks . | . . . Impact . | . . . Kinetic . | . . . Secondary . | . . . Self-Inflicted Damage 12 | . 12 . Shots . | . . . Rammed . | . . . Targets Rammed . | . . . Kicked . | . . . Crushed . | . . . Highest Temperature 210 | . 210 88 Average Temperature 97 | . 99 49 Received Heat Transfer 150 | . 120 30 Effects 1 | . 1 . Energy Bleed 1 | . 1 . Siege Activations . | . . . Martial Activations . | . . . Shielding Activations . | . . . Robots Disrupted . | . . . Combat Hostiles . | . . . Robots Corrupted . | . . . Combat Hostiles . | . . . Parts Fried . | . . . Impact Corruptions . | . . . Robots Melted . | . . . Combat Hostiles . | . . . Parts Melted 1 | . 1 . Heat Transferred 296 | . 296 . Parts Sabotaged . | . . . Parts Stolen . | . . . Parts Stripped . | . . . Power Chain Reactions . | . . . Alert | -11 -10 -10 ------- Run | Yrd Mat Sub Maximum Alert Level . | . . . Low Security (%) 100 | 100 100 . Level 1 . | . . . Level 2 . | . . . Level 3 . | . . . Level 4 . | . . . Level 5 . | . . . High Security . | . . . Max Security . | . . . Peak Influence 115 | . 115 . Initial . | . . . Average 41 | . 44 . Influence Increases 240 | . 240 . Destroy 0b10 Robot/C 180 | . 180 . Destroy 0b10 Robot/NC 10 | . 10 . Destroy Leader 30 | . 30 . Successful Hack 5 | . 5 . Lose Combat Pursuer 15 | . 15 . Influence Decreases 240 | . 240 . Time Decay 210 | . 210 . Lost Part 30 | . 30 . Squads Dispatched 1 | . 1 . Investigation . | . . . Extermination . | . . . Reinforcement 1 | . 1 . Assault . | . . . Garrison . | . . . Intercept . | . . . Searches Triggered . | . . . Construction Impeded . | . . . Haulers Reinforced . | . . . Active Scanning Responses . | . . . Cargo Convoy Interrupts . | . . . Stealth | -11 -10 -10 --------- Run | Yrd Mat Sub Distress Signals . | . . . Communications Jammed . | . . . Distress Signals . | . . . Times Spotted 23 | . 19 4 Peak Tracking Total 5 | . 5 2 Tactical Retreats 1 | . 1 . Traps | -11 -10 -10 ------- Run | Yrd Mat Sub Traps Triggered . | . . . Indirectly . | . . . Trap Hack Attempts . | . . . Triggered . | . . . Disarmed . | . . . Reprogrammed . | . . . Reused . | . . . Traps Extracted . | . . . Installed . | . . . Triggered . | . . . Machines | -11 -10 -10 ---------- Run | Yrd Mat Sub Machines Disabled . | . . . Max in Single Turn . | . . . Machines Repaired . | . . . Machines Dismantled . | . . . Machines Sabotaged . | . . . Overloaded Fab Kills . | . . . Hacking | -11 -10 -10 --------- Run | Yrd Mat Sub Machines Accessed 1 | . 1 . Terminals 1 | . 1 . Fabricators . | . . . Repair Stations . | . . . Recycling Units . | . . . Scanalyzers . | . . . Garrison Access . | . . . Total Hacks 1 | . 1 . Successful 1 | . 1 . Failed . | . . . Catastrophic . | . . . Database Lockouts . | . . . Manual . | . . . Terminals 1 | . 1 . Fabricators . | . . . Repair Stations . | . . . Recycling Units . | . . . Scanalyzers . | . . . Garrison Access . | . . . Terminal Hacks 1 | . 1 . Zone Layout 1 | . 1 . Fabricator Hacks . | . . . Repair Station Hacks . | . . . Recycling Unit Hacks . | . . . Scanalyzer . | . . . Garrison Access Hacks . | . . . Unauthorized Hacks . | . . . Terminals . | . . . Fabricators . | . . . Repair Stations . | . . . Recycling Units . | . . . Scanalyzers . | . . . Garrison Access . | . . . Data Cores Recovered . | . . . Used . | . . . Hacking Detections . | . . . Full Trace Events . | . . . Feedback Events . | . . . Feedback Blocked . | . . . Robot Schematics Acquired . | . . . Robots Built . | . . . Authchips . | . . . Time . | . . . Total Robot Build Rating . | . . . Part Schematics Acquired . | . . . Parts Built . | . . . Authchips . | . . . Time . | . . . Total Part Build Rating . | . . . Part Studies Acquired . | . . . Parts Repaired . | . . . Time . | . . . Parts Recycled . | . . . Recycled Matter . | . . . Retrieved Matter . | . . . Retrieved Components . | . . . Parts Scanalyzed . | . . . Part Schematics Acquired . | . . . Parts Damaged . | . . . Bothacking | -11 -10 -10 ------------ Run | Yrd Mat Sub Used RIF Installer . | . . . Robots Hacked . | . . . Non-combat . | . . . Combat . | . . . Robot Hacks Applied . | . . . Relay Couplers Released . | . . . Fabnet Peak Effective % . | . . . Robots Rewired . | . . . Allies Hacked . | . . . Hacks Repelled . | . . . Allies | -11 -10 -10 -------- Run | Yrd Mat Sub Total Allies . | . . . Largest Group . | . . . Highest-Rated Group . | . . . Highest-Rated Ally . | . . . Total Orders . | . . . Ally Attacks . | . . . Total Damage . | . . . Kills . | . . . Allies Corrupted . | . . . Allies Melted . | . . . Intel | -11 -10 -10 ------- Run | Yrd Mat Sub Active Infowar (turns) 765 | . 549 216 Structural 549 | . 549 . Seismic 216 | . . 216 Robot Analysis Total . | . . . Derelict Logs Recovered . | . . . Drone Launches . | . . . Drone Recoveries . | . . . Exploration | -11 -10 -10 ------------- Run | Yrd Mat Sub Turns Passed 843 | 48 579 216 Spaces Moved 408 | 47 206 155 Core 22 | 18 4 . Treads . | . . . Legs 204 | . 49 155 Wheels 182 | 29 153 . Hover . | . . . Flight . | . . . Fastest Speed 50 | 50 80 120 Average Speed 101 | 79 92 120 Slowest Speed 250 | 150 250 120 Overloaded Moves . | . . . Propulsion Burnouts . | . . . Robots Hopped . | . . . Potential Cave-ins . | . . . Cave-ins Triggered . | . . . Exploration Rate (%) 16 | 4 35 9 Regions Visited 2 Branch Regions 1 Pre-discovered Areas . | . . . Known Exits Taken . | . . . Unknown Exits Taken 2 | 1 1 . Scrap Searched . | . . . Spaces Dug . | . . . Terrain Destroyed . | . . . Melee . | . . . Projectile . | . . . AOE . | . . . Terrain Rammed 1 | . 1 . Walls Destroyed . | . . . Machines Disabled . | . . . Actions | -11 -10 -10 --------- Run | Yrd Mat Sub Total 769 | 54 539 176 Wait 283 | . 276 7 Move 406 | 46 205 155 Hop . | . . . Pick Up 10 | 2 7 1 Fast Attach 6 | 6 . . Attach 9 | . 7 2 Detach 4 | . 3 1 Swap 4 | . 2 2 Drop 3 | . . 3 Fire 43 | . 38 5 Melee . | . . . Ram 1 | . 1 . Kick . | . . . Crush . | . . . Escape Stasis . | . . . Rewire . | . . . Trap . | . . . Miscellaneous . | . . . Route ------- -11/Scrapyard -10/Materials (discovered 2 exits: [*Mat] / [*Sub]) -10/Subcaves History --------- Turn | Location | Event 6 | -11/Scrapyard | Discovered new exit (range 16) 49 | -11/Scrapyard | Entered Materials 122 | -10/Materials | Discovered new exit (range 16) 192 | -10/Materials | Discovered new exit (range 16) 301 | -10/Materials | Build established: Mutant 365 | -10/Materials | Core integrity fell below 50% 628 | -10/Materials | Entered Subcaves 692 | -10/Subcaves | Core integrity fell below 20% 844 | -10/Subcaves | Destroyed by O7-5YO(R) with Subdweller Machine Gun Last Messages --------------- AMBIENT_HEAT=-10 GOAL=ESCAPE System corrupted: Energy discharge (-48). System corrupted: Matter fused (-10). Acquired 15 matter. GE-AYF(R) destroyed. Switching to secondary target: 1L-Q4P(R). Subatomizers dissect the Sub. Optics. 1L-Q4P(R) destroyed. Acquired 53 matter. Subatomizers dissect the Sub. Optics. Acquired 12 matter. Subatomizers dissect the Sub. Optics. Acquired Battle Rifle. Dropped Assault Rifle. Dropped Broken Lgt. Ion Engine. Dropped Beam Cannon. Subatomizers dissect the Sub. Optics. System corrupted: Heat flow error (+126). O7-5YO(R): "OHNO!" Map ----- +----------------------------------------------------+ | ????# #?????## #?????????????????????????? | | ????## # # ##?????# ""#?????????????????????????? | | ????## #####??????? #?????????????????????????? | | ????# #??????????? ##???###??????????????????? | | ????## #???????????# ??# #??????????????????? | | ????# #???????????# ##" ""???????????????????? | | ???### #???????????# """"????????????????????? | | ??## # #?###????#### """"" ????????????????????? | | ?## ### ###### """"" ???????????????????? | | ?# # """"## ????????????????????? | | ?# ## "###???????????????????????? | | ?## ### ## # ####?????????????????????????? | | ??####### ### ##? #?????????????????????????? | | ????# ### ## ##"##????????????????????????? | | ???## ### ## # ????????????????????????? | | ???# ## ## # ????????????????????????? | | ????# ## ## #???????????????????????? | | ?#### ## ## #??????#????????????????? | | ?# ## #### ## #????? #????????????????? | | ?##*] ## ##?## ### #???? #????????????????? | | ??#[! # #?## ### ##### #?????????????????? | | ??#%!#### ### ## ##????????????????? | | ??# ##?# ## #####????????????? | | ??## &## R #????????????? | | ???#!"##### ## #?????????????? | | ???####???## ####" ####@ #??????????????? | | ???????????####??#####??## ##??????????????? | | ?????????????????????????? # ##???????????????? | | ??????????????????????????? #? #???????????????? | | ???????????????????????????"#???##???????????????? | | ????????????????????????????"????????????????????? | | ???????????????????????????? ???????????????????? | | ????????????????????????????? ???????????????????? | | ?????????????????????????????" ??????????????????? | | ?????????????????????????????????????????????????? | | ?????????????????????????????????????????????????? | | ?????????????????????????????????????????????????? | | ?????????????????????????????????????????????????? | | ?????????????????????????????????????????????????? | | ?????????????????????????????????????????????????? | | ?????????????????????????????????????????????????? | | ?????????????????????????????????????????????????? | | ?????????????????????????????????????????????????? | | ?????????????????????????????????????????????????? | | ?????????????????????????????????????????????????? | | ?????????????????????????????????????????????????? | | ?????????????????????????????????????????????????? | | ?????????????????????????????????????????????????? | | ?????????????????????????????????????????????????? | | ?????????????????????????????????????????????????? | +----------------------------------------------------+ Best States ------------- Heat Dissipation 25 Energy Generation 10 Energy Capacity 250 Matter Stores 300 Matter Capacity 300 Sight Range 16 Terrain Scan Density 10 Evasion (%) 55 Item Schematics ----------------- None Robot Schematics ------------------ None Fabricated ------------ Nothing Repaired ---------- Nothing Studied --------- None Alien Tech Used ----------------- None Achievements -------------- None Challenges ------------ None Game ------ Seed IonExoskeletonNanoactuators Manual? 0 Play Time 00:11:38 Cumulative 36.8 hours Start 2026.08.27 @ 21:32:47 End 2026.08.27 @ 21:44:38 Sessions 1 Manual Loads 0 Difficulty Rogue Special Mode None Game No. 72 Rogue 72 Adventurer 0 Explorer 0 Win Type - Total 0 Types 0/0/0/0/0/0/0/0/0/0 Lore% 30 Gallery% 22 Achievement% 22 Wizard Run 0 Options --------- Layout 1 ASCII 0 Keyboard 1 Movement Arrows Keybinds 0 Fullscreen 0 Font 14/SmallcapsGlow Map View 55x38 Zoom Use 0% Tactical HUD 0 Map Filters NONE Filters NONE Steam 1 RUN: bf96d30e-5b49-4b4a-8e5b-b83c84c602ac